[Event "*** SCC Grand Prix: Titled Tuesday Blitz"]
[Site "Chess.com"]
[Date "2020.07.07"]
[Round "7"]
[White "Barmen_EV"]
[Black "InitiatingASC"]
[Result "1-0"]
[WhiteElo "2468"]
[BlackElo "2339"]
[TimeControl "180+1"]
[EndTime "11:18:14 PDT"]
[Termination "Barmen_EV won by checkmate"]

1. Nf3 {[%clk 0:02:53]} 1... Nf6 {[%clk 0:02:58]} 2. c4 {[%clk 0:02:31.8]} 2...
e6 {[%clk 0:02:57.2]} 3. Nc3 {[%clk 0:02:31.4]} 3... c5 {[%clk 0:02:57.2]} 4. g3
{[%clk 0:02:27.9]} 4... b6 {[%clk 0:02:57.2]} 5. d4 {[%clk 0:02:28.8]} 5... cxd4
{[%clk 0:02:56.4]} 6. Qxd4 {[%clk 0:02:26.1]} 6... Bb7 {[%clk 0:02:55.7]} 7. Bg2
{[%clk 0:02:25.4]} 7... Be7 {[%clk 0:02:53.7]} 8. O-O {[%clk 0:02:24.7]} 8...
O-O {[%clk 0:02:53.4]} 9. Rd1 {[%clk 0:02:25.1]} 9... Qc7 {[%clk 0:02:23.3]} 10.
Bf4 {[%clk 0:02:21.2]} 10... Qc8 {[%clk 0:02:05.5]} 11. Nb5 {[%clk 0:02:18.1]}
11... Nc6 {[%clk 0:02:04.2]} 12. Qd3 {[%clk 0:02:16.6]} 12... Nb4 {[%clk
0:01:59.5]} 13. Qb3 {[%clk 0:02:16.3]} 13... d5 {[%clk 0:01:50.8]} 14. Nd6
{[%clk 0:02:16.4]} 14... Bxd6 {[%clk 0:01:43.6]} 15. Bxd6 {[%clk 0:02:17.3]}
15... Na6 {[%clk 0:01:44.2]} 16. Bxf8 {[%clk 0:02:14.8]} 16... dxc4 {[%clk
0:01:42.8]} 17. Qb5 {[%clk 0:01:48.2]} 17... Qxf8 {[%clk 0:01:38.3]} 18. Qxc4
{[%clk 0:01:47.4]} 18... Rc8 {[%clk 0:01:35.1]} 19. Qd4 {[%clk 0:01:47.1]} 19...
Nc5 {[%clk 0:01:33.8]} 20. Rac1 {[%clk 0:01:46.6]} 20... Bd5 {[%clk 0:01:24.1]}
21. b4 {[%clk 0:01:45.6]} 21... Na4 {[%clk 0:01:19.7]} 22. Ne5 {[%clk
0:01:36.6]} 22... h6 {[%clk 0:01:16]} 23. e4 {[%clk 0:01:28.2]} 23... Bxa2
{[%clk 0:01:07.5]} 24. Rxc8 {[%clk 0:01:24.5]} 24... Qxc8 {[%clk 0:01:07.1]} 25.
Qd8+ {[%clk 0:01:25.4]} 25... Qxd8 {[%clk 0:01:07.4]} 26. Rxd8+ {[%clk
0:01:26.3]} 26... Kh7 {[%clk 0:01:07.1]} 27. Nxf7 {[%clk 0:01:27.2]} 27... Nc3
{[%clk 0:01:04.2]} 28. e5 {[%clk 0:01:21.8]} 28... Nfd5 {[%clk 0:01:02.8]} 29.
h4 {[%clk 0:01:16.4]} 29... Kg6 {[%clk 0:01:02.2]} 30. Rd7 {[%clk 0:01:05.5]}
30... a5 {[%clk 0:00:57.7]} 31. bxa5 {[%clk 0:01:05.4]} 31... bxa5 {[%clk
0:00:58.2]} 32. g4 {[%clk 0:01:00.5]} 32... h5 {[%clk 0:00:54.3]} 33. f3 {[%clk
0:00:47]} 33... a4 {[%clk 0:00:53.5]} 34. Bf1 {[%clk 0:00:46.2]} 34... Bb3
{[%clk 0:00:49.1]} 35. Bd3+ {[%clk 0:00:42.9]} 35... Ne4 {[%clk 0:00:44.6]} 36.
Bxe4# {[%clk 0:00:43.2]} 1-0

[Event "*** SCC Grand Prix: Titled Tuesday Blitz"]
[Site "Chess.com"]
[Date "2020.07.07"]
[Round "7"]
[White "TurboSteen"]
[Black "inegrepus"]
[Result "0-1"]
[WhiteElo "1957"]
[BlackElo "2182"]
[TimeControl "180+1"]
[EndTime "11:18:14 PDT"]
[Termination "inegrepus won on time"]

1. e4 {[%clk 0:02:44.1]} 1... e5 {[%clk 0:02:52]} 2. Nf3 {[%clk 0:02:42.5]} 2...
Nc6 {[%clk 0:02:50.2]} 3. Bb5 {[%clk 0:02:39.5]} 3... f5 {[%clk 0:02:49.6]} 4.
d3 {[%clk 0:02:31.2]} 4... fxe4 {[%clk 0:02:48.6]} 5. dxe4 {[%clk 0:02:29.2]}
5... Nf6 {[%clk 0:02:47.8]} 6. O-O {[%clk 0:01:40.3]} 6... Bc5 {[%clk
0:02:45.1]} 7. Qd3 {[%clk 0:01:13.4]} 7... d6 {[%clk 0:02:34.2]} 8. Qc4 {[%clk
0:01:09.8]} 8... Bd7 {[%clk 0:02:33.8]} 9. Nc3 {[%clk 0:01:06.2]} 9... Qe7
{[%clk 0:02:32.2]} 10. Nd5 {[%clk 0:01:03.2]} 10... Nxd5 {[%clk 0:02:28.4]} 11.
exd5 {[%clk 0:01:01.5]} 11... Nd4 {[%clk 0:02:28.7]} 12. Nxd4 {[%clk 0:00:54]}
12... Bxd4 {[%clk 0:02:25.8]} 13. Be3 {[%clk 0:00:52.5]} 13... Bxe3 {[%clk
0:02:15.1]} 14. fxe3 {[%clk 0:00:48.3]} 14... O-O-O {[%clk 0:02:12.1]} 15. Bxd7+
{[%clk 0:00:45.5]} 15... Qxd7 {[%clk 0:02:06.4]} 16. Rf2 {[%clk 0:00:42.5]}
16... Rhf8 {[%clk 0:02:05.5]} 17. Raf1 {[%clk 0:00:40.1]} 17... Rxf2 {[%clk
0:02:03.5]} 18. Rxf2 {[%clk 0:00:37.3]} 18... Qe7 {[%clk 0:02:01.7]} 19. Qg4+
{[%clk 0:00:32]} 19... Kb8 {[%clk 0:02:01.6]} 20. Qe6 {[%clk 0:00:28.9]} 20...
Qg5 {[%clk 0:01:56.9]} 21. e4 {[%clk 0:00:22.1]} 21... Qc1+ {[%clk 0:01:49.7]}
22. Rf1 {[%clk 0:00:20.1]} 22... Qxc2 {[%clk 0:01:48.6]} 23. Qe7 {[%clk
0:00:16.4]} 23... Rc8 {[%clk 0:01:44.8]} 24. Rf8 {[%clk 0:00:14.2]} 24... Qb1+
{[%clk 0:01:36.3]} 25. Kf2 {[%clk 0:00:11.4]} 25... Qxb2+ {[%clk 0:01:36.4]} 26.
Kg3 {[%clk 0:00:11.2]} 26... b6 {[%clk 0:01:34.2]} 27. Qxg7 {[%clk 0:00:08.6]}
27... Qc3+ {[%clk 0:01:32.1]} 28. Kh4 {[%clk 0:00:06.3]} 28... Qe3 {[%clk
0:01:21.1]} 29. Rxc8+ {[%clk 0:00:02.8]} 29... Kxc8 {[%clk 0:01:21.3]} 30. Qxh7
{[%clk 0:00:02.4]} 30... Qf4+ {[%clk 0:01:20.4]} 0-1

[Event "*** SCC Grand Prix: Titled Tuesday Blitz"]
[Site "Chess.com"]
[Date "2020.07.07"]
[Round "7"]
[White "margarita_2703"]
[Black "viktorskliarov"]
[Result "0-1"]
[WhiteElo "2388"]
[BlackElo "2519"]
[TimeControl "180+1"]
[EndTime "11:18:15 PDT"]
[Termination "viktorskliarov won by resignation"]

1. Nf3 {[%clk 0:02:48.8]} 1... Nf6 {[%clk 0:02:54.9]} 2. d4 {[%clk 0:02:48.7]}
2... g6 {[%clk 0:02:54.4]} 3. c4 {[%clk 0:02:48.3]} 3... Bg7 {[%clk 0:02:54.4]}
4. Nc3 {[%clk 0:02:48.8]} 4... O-O {[%clk 0:02:54.9]} 5. e4 {[%clk 0:02:48.8]}
5... d6 {[%clk 0:02:50.2]} 6. Be2 {[%clk 0:02:49.1]} 6... Bg4 {[%clk 0:02:50]}
7. Nd2 {[%clk 0:02:45.5]} 7... Bxe2 {[%clk 0:02:48.4]} 8. Qxe2 {[%clk
0:02:45.2]} 8... Nc6 {[%clk 0:02:45.1]} 9. d5 {[%clk 0:02:44.5]} 9... Nd4 {[%clk
0:02:43.4]} 10. Qd1 {[%clk 0:02:43.7]} 10... c5 {[%clk 0:02:42]} 11. Nf3 {[%clk
0:02:37.8]} 11... e5 {[%clk 0:01:56]} 12. dxe6 {[%clk 0:02:26.8]} 12... fxe6
{[%clk 0:01:55.4]} 13. O-O {[%clk 0:02:14.3]} 13... e5 {[%clk 0:01:52.5]} 14.
Bg5 {[%clk 0:02:12.2]} 14... Qd7 {[%clk 0:01:48]} 15. Nd2 {[%clk 0:02:03.1]}
15... h6 {[%clk 0:01:37]} 16. Bh4 {[%clk 0:02:01.9]} 16... g5 {[%clk 0:01:34.1]}
17. Bg3 {[%clk 0:02:01.1]} 17... Kh7 {[%clk 0:01:34.2]} 18. Nd5 {[%clk
0:02:00.3]} 18... Nxd5 {[%clk 0:01:30.9]} 19. exd5 {[%clk 0:01:49.8]} 19... b5
{[%clk 0:01:24.7]} 20. b3 {[%clk 0:01:40.7]} 20... bxc4 {[%clk 0:01:24]} 21.
bxc4 {[%clk 0:01:40.6]} 21... Rab8 {[%clk 0:01:23.8]} 22. Rb1 {[%clk 0:01:37.7]}
22... Qf5 {[%clk 0:01:23.3]} 23. f3 {[%clk 0:01:29.7]} 23... h5 {[%clk
0:01:05.3]} 24. Ne4 {[%clk 0:01:28.1]} 24... h4 {[%clk 0:01:01.6]} 25. Bf2
{[%clk 0:01:21.1]} 25... g4 {[%clk 0:00:42.6]} 26. Rxb8 {[%clk 0:01:16.8]} 26...
Rxb8 {[%clk 0:00:41.6]} 27. Bxd4 {[%clk 0:01:12.8]} 27... exd4 {[%clk
0:00:39.5]} 28. Nxd6 {[%clk 0:01:11.2]} 28... Qg6 {[%clk 0:00:37.7]} 29. Ne4
{[%clk 0:01:08.5]} 29... h3 {[%clk 0:00:28.9]} 30. fxg4 {[%clk 0:00:58.9]} 30...
Qxe4 {[%clk 0:00:27.7]} 31. gxh3 {[%clk 0:00:53.4]} 31... d3 {[%clk 0:00:27]}
32. g5 {[%clk 0:00:51.9]} 32... Bd4+ {[%clk 0:00:26.6]} 0-1

[Event "*** SCC Grand Prix: Titled Tuesday Blitz"]
[Site "Chess.com"]
[Date "2020.07.07"]
[Round "7"]
[White "gumimis"]
[Black "killer311"]
[Result "0-1"]
[WhiteElo "2178"]
[BlackElo "2385"]
[TimeControl "180+1"]
[EndTime "11:18:15 PDT"]
[Termination "killer311 won on time"]

1. e4 {[%clk 0:03:00.8]} 1... c6 {[%clk 0:03:00.2]} 2. d4 {[%clk 0:02:59.2]}
2... d5 {[%clk 0:03:01.1]} 3. Nc3 {[%clk 0:02:59.4]} 3... dxe4 {[%clk
0:03:00.9]} 4. Nxe4 {[%clk 0:03:00.3]} 4... Bf5 {[%clk 0:03:01.2]} 5. Ng3 {[%clk
0:03:00.8]} 5... Bg6 {[%clk 0:03:01.6]} 6. h4 {[%clk 0:03:01]} 6... h6 {[%clk
0:03:02]} 7. Nf3 {[%clk 0:03:01.7]} 7... Nf6 {[%clk 0:03:01.1]} 8. Ne5 {[%clk
0:03:00.4]} 8... Bh7 {[%clk 0:03:01.6]} 9. Bd3 {[%clk 0:02:59.6]} 9... Bxd3
{[%clk 0:03:01.1]} 10. Qxd3 {[%clk 0:02:59.9]} 10... e6 {[%clk 0:03:01.7]} 11.
Bd2 {[%clk 0:02:47.4]} 11... Nbd7 {[%clk 0:03:00.8]} 12. Qe2 {[%clk 0:02:43.4]}
12... Be7 {[%clk 0:02:58.3]} 13. O-O-O {[%clk 0:02:40.9]} 13... O-O {[%clk
0:02:57.5]} 14. Nf1 {[%clk 0:02:23.9]} 14... Qb6 {[%clk 0:02:46.3]} 15. Be3
{[%clk 0:02:16.2]} 15... Qa5 {[%clk 0:02:42.6]} 16. Nxd7 {[%clk 0:02:06.6]}
16... Nxd7 {[%clk 0:02:43.5]} 17. Kb1 {[%clk 0:02:06.3]} 17... c5 {[%clk
0:02:37.8]} 18. g4 {[%clk 0:02:04]} 18... cxd4 {[%clk 0:02:34.5]} 19. Bxd4
{[%clk 0:02:03.7]} 19... Bf6 {[%clk 0:02:28.7]} 20. Ne3 {[%clk 0:01:59.4]} 20...
Rfd8 {[%clk 0:02:21.4]} 21. g5 {[%clk 0:01:45.2]} 21... Bxd4 {[%clk 0:02:13.5]}
22. Rxd4 {[%clk 0:01:42.4]} 22... hxg5 {[%clk 0:02:13.6]} 23. hxg5 {[%clk
0:01:40.4]} 23... Qxg5 {[%clk 0:02:11]} 24. Rdh4 {[%clk 0:01:25.8]} 24... Kf8
{[%clk 0:02:10]} 25. Rh8+ {[%clk 0:01:24.8]} 25... Ke7 {[%clk 0:02:09.8]} 26.
R8h5 {[%clk 0:01:24.8]} 26... Qg6 {[%clk 0:01:58.9]} 27. Nf5+ {[%clk 0:01:10.1]}
27... Kf6 {[%clk 0:01:50.9]} 28. Nd6 {[%clk 0:00:15.8]} 28... Nf8 {[%clk
0:01:43.2]} 29. Qe5+ {[%clk 0:00:12]} 29... Ke7 {[%clk 0:01:42.9]} 30. Nf5+
{[%clk 0:00:10.4]} 30... Ke8 {[%clk 0:01:41.8]} 31. Qb5+ {[%clk 0:00:09.9]}
31... Rd7 {[%clk 0:01:37.6]} 32. Rd1 {[%clk 0:00:03.1]} 32... Qg4 {[%clk
0:01:29.5]} 0-1

[Event "*** SCC Grand Prix: Titled Tuesday Blitz"]
[Site "Chess.com"]
[Date "2020.07.07"]
[Round "7"]
[White "Kopytkin"]
[Black "hectorfiori"]
[Result "1-0"]
[WhiteElo "2464"]
[BlackElo "2329"]
[TimeControl "180+1"]
[EndTime "11:18:17 PDT"]
[Termination "Kopytkin won by resignation"]

1. e4 {[%clk 0:03:00.9]} 1... c5 {[%clk 0:02:59.6]} 2. d4 {[%clk 0:03:00.7]}
2... e6 {[%clk 0:02:59.6]} 3. c3 {[%clk 0:02:54.6]} 3... Nf6 {[%clk 0:02:58]} 4.
e5 {[%clk 0:02:53.6]} 4... Nd5 {[%clk 0:02:57.8]} 5. Nf3 {[%clk 0:02:53.8]} 5...
cxd4 {[%clk 0:02:57.3]} 6. cxd4 {[%clk 0:02:53.1]} 6... d6 {[%clk 0:02:56.9]} 7.
Bd3 {[%clk 0:02:50.7]} 7... Nc6 {[%clk 0:02:54.3]} 8. O-O {[%clk 0:02:48.9]}
8... dxe5 {[%clk 0:02:52.6]} 9. dxe5 {[%clk 0:02:49.1]} 9... Be7 {[%clk
0:02:51]} 10. a3 {[%clk 0:02:49.3]} 10... Qc7 {[%clk 0:02:40.9]} 11. Qe2 {[%clk
0:02:49]} 11... a6 {[%clk 0:02:39.6]} 12. Nbd2 {[%clk 0:02:46.6]} 12... b5
{[%clk 0:02:37.9]} 13. Nb3 {[%clk 0:02:36.8]} 13... Bb7 {[%clk 0:02:36.3]} 14.
Bd2 {[%clk 0:02:35.2]} 14... Rc8 {[%clk 0:02:33]} 15. Rac1 {[%clk 0:02:34.5]}
15... Qb8 {[%clk 0:02:32.8]} 16. Rfe1 {[%clk 0:02:27.7]} 16... h6 {[%clk
0:02:24.1]} 17. Nc5 {[%clk 0:02:27.2]} 17... O-O {[%clk 0:02:12.7]} 18. Nxb7
{[%clk 0:02:22.7]} 18... Qxb7 {[%clk 0:02:12.4]} 19. Qe4 {[%clk 0:02:23.3]}
19... g6 {[%clk 0:01:46]} 20. Bxh6 {[%clk 0:02:21.1]} 20... Rfd8 {[%clk
0:01:46.4]} 21. Bg5 {[%clk 0:02:19.8]} 21... Bxg5 {[%clk 0:01:36.8]} 22. Nxg5
{[%clk 0:02:19.3]} 22... Kg7 {[%clk 0:01:35.2]} 23. Nxe6+ {[%clk 0:02:16.5]}
23... fxe6 {[%clk 0:01:31]} 24. Qxg6+ {[%clk 0:02:16.5]} 24... Kh8 {[%clk
0:01:26.2]} 25. Qh6+ {[%clk 0:01:53.6]} 25... Kg8 {[%clk 0:01:24.8]} 26. Qxe6+
{[%clk 0:01:53.3]} 26... Qf7 {[%clk 0:01:25.2]} 27. Rxc6 {[%clk 0:01:15.4]}
27... Qxe6 {[%clk 0:01:24.3]} 28. Rxe6 {[%clk 0:01:15.1]} 28... Nf4 {[%clk
0:01:24.9]} 29. Bf5 {[%clk 0:01:13.3]} 29... Rc5 {[%clk 0:00:55.4]} 30. Rd6
{[%clk 0:00:48]} 30... Rxd6 {[%clk 0:00:49.1]} 31. exd6 {[%clk 0:00:48.1]} 31...
Rxf5 {[%clk 0:00:42.3]} 32. d7 {[%clk 0:00:47.7]} 32... Rf8 {[%clk 0:00:35]} 33.
Re8 {[%clk 0:00:43.5]} 1-0

[Event "*** SCC Grand Prix: Titled Tuesday Blitz"]
[Site "Chess.com"]
[Date "2020.07.07"]
[Round "7"]
[White "Nara_Kh"]
[Black "Na_binci"]
[Result "1-0"]
[WhiteElo "2283"]
[BlackElo "2057"]
[TimeControl "180+1"]
[EndTime "11:18:17 PDT"]
[Termination "Nara_Kh won by resignation"]

1. c4 {[%clk 0:03:00.9]} 1... Nf6 {[%clk 0:02:56.9]} 2. Nc3 {[%clk 0:03:00.2]}
2... g6 {[%clk 0:02:56.9]} 3. g3 {[%clk 0:02:59.9]} 3... Bg7 {[%clk 0:02:56.6]}
4. Bg2 {[%clk 0:02:59.7]} 4... O-O {[%clk 0:02:57.5]} 5. e4 {[%clk 0:02:58.7]}
5... d6 {[%clk 0:02:58.4]} 6. d3 {[%clk 0:02:58.7]} 6... c5 {[%clk 0:02:55.1]}
7. Nge2 {[%clk 0:02:58.1]} 7... Nc6 {[%clk 0:02:54.7]} 8. O-O {[%clk 0:02:57.6]}
8... Nd4 {[%clk 0:02:47.2]} 9. Be3 {[%clk 0:02:55.6]} 9... Ne8 {[%clk
0:02:45.9]} 10. Rb1 {[%clk 0:02:54.1]} 10... Rb8 {[%clk 0:02:23.2]} 11. a3
{[%clk 0:02:46.7]} 11... Nc7 {[%clk 0:02:16.7]} 12. b4 {[%clk 0:02:40.3]} 12...
Nce6 {[%clk 0:02:14.5]} 13. f4 {[%clk 0:02:27.9]} 13... Nxe2+ {[%clk 0:02:08.9]}
14. Nxe2 {[%clk 0:02:27]} 14... Nd4 {[%clk 0:02:08.7]} 15. h3 {[%clk 0:02:18.9]}
15... Bd7 {[%clk 0:02:01.3]} 16. g4 {[%clk 0:01:58.6]} 16... b5 {[%clk
0:01:44.3]} 17. bxc5 {[%clk 0:01:43.3]} 17... dxc5 {[%clk 0:01:42.1]} 18. e5
{[%clk 0:01:27.8]} 18... bxc4 {[%clk 0:01:07.6]} 19. Rxb8 {[%clk 0:01:25.2]}
19... Qxb8 {[%clk 0:01:07.1]} 20. Bxd4 {[%clk 0:01:19.7]} 20... cxd4 {[%clk
0:01:04.7]} 21. dxc4 {[%clk 0:01:19.5]} 21... Rd8 {[%clk 0:00:42]} 22. Kh1
{[%clk 0:00:50.2]} 22... d3 {[%clk 0:00:11.7]} 23. Nc3 {[%clk 0:00:44.6]} 23...
Qb3 {[%clk 0:00:11.9]} 24. Qxb3 {[%clk 0:00:43.3]} 1-0

[Event "*** SCC Grand Prix: Titled Tuesday Blitz"]
[Site "Chess.com"]
[Date "2020.07.07"]
[Round "7"]
[White "pedromartinez91"]
[Black "bascheyaro"]
[Result "0-1"]
[WhiteElo "2549"]
[BlackElo "2703"]
[TimeControl "180+1"]
[EndTime "11:18:19 PDT"]
[Termination "bascheyaro won on time"]

1. e4 {[%clk 0:03:00.9]} 1... e6 {[%clk 0:03:00.2]} 2. d4 {[%clk 0:03:00.9]}
2... d5 {[%clk 0:03:01.1]} 3. Nc3 {[%clk 0:03:01.4]} 3... Bb4 {[%clk 0:03:01]}
4. Qd3 {[%clk 0:03:01.4]} 4... c5 {[%clk 0:02:59.5]} 5. exd5 {[%clk 0:03:00.4]}
5... exd5 {[%clk 0:02:59.4]} 6. dxc5 {[%clk 0:03:00.8]} 6... Nc6 {[%clk
0:02:59.4]} 7. Bd2 {[%clk 0:02:55.5]} 7... Nf6 {[%clk 0:02:57.2]} 8. O-O-O
{[%clk 0:02:45.4]} 8... O-O {[%clk 0:02:56.7]} 9. Bg5 {[%clk 0:02:33.9]} 9...
Be6 {[%clk 0:02:54.6]} 10. Nh3 {[%clk 0:02:19.9]} 10... h6 {[%clk 0:02:44.5]}
11. Bd2 {[%clk 0:02:11.3]} 11... Bxc5 {[%clk 0:02:17.9]} 12. Nf4 {[%clk
0:02:06.7]} 12... Nb4 {[%clk 0:01:59]} 13. Qg3 {[%clk 0:02:01.7]} 13... Bf5
{[%clk 0:01:47]} 14. Nd3 {[%clk 0:01:47.9]} 14... Nxd3+ {[%clk 0:01:23.7]} 15.
Bxd3 {[%clk 0:01:48.8]} 15... Bxd3 {[%clk 0:01:21.3]} 16. cxd3 {[%clk 0:01:42]}
16... d4 {[%clk 0:01:21.2]} 17. Ne2 {[%clk 0:01:26.5]} 17... Qb6 {[%clk
0:01:10]} 18. Kb1 {[%clk 0:01:14.2]} 18... Ba3 {[%clk 0:01:09.3]} 19. b3 {[%clk
0:01:12.3]} 19... a5 {[%clk 0:01:05]} 20. Qh4 {[%clk 0:00:26.1]} 20... Rfd8
{[%clk 0:00:58.9]} 21. Bc1 {[%clk 0:00:11.3]} 21... Be7 {[%clk 0:00:56.6]} 22.
Qg3 {[%clk 0:00:08.4]} 22... a4 {[%clk 0:00:55.5]} 23. Bxh6 {[%clk 0:00:04.6]}
23... Bf8 {[%clk 0:00:55.9]} 24. Nc1 {[%clk 0:00:03.3]} 24... axb3 {[%clk
0:00:50.6]} 0-1

[Event "*** SCC Grand Prix: Titled Tuesday Blitz"]
[Site "Chess.com"]
[Date "2020.07.07"]
[Round "7"]
[White "Timerkhanov"]
[Black "Nikithebest"]
[Result "1-0"]
[WhiteElo "2626"]
[BlackElo "2471"]
[TimeControl "180+1"]
[EndTime "11:18:22 PDT"]
[Termination "Timerkhanov won by resignation"]

1. d4 {[%clk 0:03:00.9]} 1... Nf6 {[%clk 0:02:59.1]} 2. Bg5 {[%clk 0:03:00.5]}
2... e6 {[%clk 0:02:56.7]} 3. Nd2 {[%clk 0:03:00.2]} 3... d5 {[%clk 0:02:51]} 4.
e3 {[%clk 0:03:00.2]} 4... c5 {[%clk 0:02:42.1]} 5. c3 {[%clk 0:02:59.1]} 5...
Nbd7 {[%clk 0:02:35.2]} 6. f4 {[%clk 0:02:58.2]} 6... Qb6 {[%clk 0:02:34.9]} 7.
Rb1 {[%clk 0:02:57.6]} 7... Bd6 {[%clk 0:02:34.7]} 8. Bxf6 {[%clk 0:02:57.3]}
8... Nxf6 {[%clk 0:02:33.6]} 9. Ngf3 {[%clk 0:02:54.6]} 9... Qc7 {[%clk
0:02:32.2]} 10. Bd3 {[%clk 0:02:53.9]} 10... b6 {[%clk 0:02:30.4]} 11. O-O
{[%clk 0:02:50.5]} 11... a5 {[%clk 0:02:28.2]} 12. Ne5 {[%clk 0:02:48.7]} 12...
c4 {[%clk 0:02:12.3]} 13. Bc2 {[%clk 0:02:46.2]} 13... b5 {[%clk 0:02:06.1]} 14.
Qf3 {[%clk 0:02:41.9]} 14... g6 {[%clk 0:02:05.4]} 15. Rbe1 {[%clk 0:02:35]}
15... Bb7 {[%clk 0:02:03.7]} 16. g4 {[%clk 0:02:16.1]} 16... Nd7 {[%clk
0:01:23.7]} 17. e4 {[%clk 0:02:09.8]} 17... Nf6 {[%clk 0:01:00.1]} 18. Nxf7
{[%clk 0:01:43.3]} 18... Qxf7 {[%clk 0:00:52.8]} 19. e5 {[%clk 0:01:42.3]} 19...
O-O-O {[%clk 0:00:46.3]} 20. exd6 {[%clk 0:01:26.9]} 20... Rxd6 {[%clk
0:00:46.4]} 21. Qg3 {[%clk 0:01:18.5]} 21... Rdd8 {[%clk 0:00:42.8]} 22. Nf3
{[%clk 0:01:18]} 22... Rde8 {[%clk 0:00:33.7]} 23. Ne5 {[%clk 0:00:39.1]} 23...
Qc7 {[%clk 0:00:30.8]} 24. h3 {[%clk 0:00:36.8]} 24... h5 {[%clk 0:00:30.1]} 25.
g5 {[%clk 0:00:36.1]} 25... Rhg8 {[%clk 0:00:27.5]} 26. gxf6 {[%clk 0:00:34.9]}
1-0

[Event "*** SCC Grand Prix: Titled Tuesday Blitz"]
[Site "Chess.com"]
[Date "2020.07.07"]
[Round "7"]
[White "barbara25"]
[Black "boasovietica"]
[Result "1-0"]
[WhiteElo "2335"]
[BlackElo "2445"]
[TimeControl "180+1"]
[EndTime "11:18:22 PDT"]
[Termination "barbara25 won by resignation"]

1. e4 {[%clk 0:03:00.9]} 1... e5 {[%clk 0:02:58.5]} 2. Nf3 {[%clk 0:02:59.7]}
2... Nc6 {[%clk 0:02:58.5]} 3. Bc4 {[%clk 0:02:54.9]} 3... Bc5 {[%clk
0:02:57.3]} 4. b4 {[%clk 0:02:53.9]} 4... Bxb4 {[%clk 0:02:57]} 5. c3 {[%clk
0:02:53.6]} 5... Be7 {[%clk 0:02:57.1]} 6. d4 {[%clk 0:02:53.6]} 6... d6 {[%clk
0:02:57.2]} 7. O-O {[%clk 0:02:53]} 7... Nf6 {[%clk 0:02:56.5]} 8. Re1 {[%clk
0:02:52.5]} 8... O-O {[%clk 0:02:55.8]} 9. Nbd2 {[%clk 0:02:50.9]} 9... Bg4
{[%clk 0:02:33.3]} 10. d5 {[%clk 0:02:50.2]} 10... Nb8 {[%clk 0:02:31.9]} 11.
Rb1 {[%clk 0:02:49.2]} 11... b6 {[%clk 0:02:30.1]} 12. Nf1 {[%clk 0:02:48.9]}
12... Nbd7 {[%clk 0:02:27.5]} 13. h3 {[%clk 0:02:48.4]} 13... Bh5 {[%clk
0:02:26.9]} 14. Ng3 {[%clk 0:02:48.3]} 14... Bg6 {[%clk 0:02:26.7]} 15. Bd3
{[%clk 0:02:47.6]} 15... Nc5 {[%clk 0:02:26.5]} 16. Bc2 {[%clk 0:02:47.7]} 16...
Qd7 {[%clk 0:02:12.8]} 17. Qe2 {[%clk 0:02:46.5]} 17... c6 {[%clk 0:02:00.8]}
18. c4 {[%clk 0:02:45.4]} 18... cxd5 {[%clk 0:01:53.8]} 19. exd5 {[%clk
0:02:41.7]} 19... Bxc2 {[%clk 0:01:49.5]} 20. Qxc2 {[%clk 0:02:39.7]} 20... Rfe8
{[%clk 0:01:46.2]} 21. Ng5 {[%clk 0:02:36.5]} 21... h6 {[%clk 0:01:41.8]} 22.
N5e4 {[%clk 0:02:33.7]} 22... Nfxe4 {[%clk 0:01:41]} 23. Nxe4 {[%clk 0:02:33.6]}
23... Nxe4 {[%clk 0:01:41]} 24. Qxe4 {[%clk 0:02:34.1]} 24... f5 {[%clk
0:01:41.2]} 25. Qe2 {[%clk 0:02:32.3]} 25... Bf6 {[%clk 0:01:40]} 26. a4 {[%clk
0:02:31.6]} 26... Rac8 {[%clk 0:01:38.6]} 27. a5 {[%clk 0:02:31.4]} 27... bxa5
{[%clk 0:01:37.4]} 28. Bd2 {[%clk 0:02:29.4]} 28... a4 {[%clk 0:01:33.5]} 29.
Rb5 {[%clk 0:02:28.9]} 29... e4 {[%clk 0:01:31.8]} 30. Ra5 {[%clk 0:02:16.7]}
30... Bd4 {[%clk 0:01:22.3]} 31. Be3 {[%clk 0:02:08.8]} 31... Bxe3 {[%clk
0:01:19.8]} 32. fxe3 {[%clk 0:02:01.2]} 32... Rc7 {[%clk 0:01:07.9]} 33. Ra1
{[%clk 0:01:57.4]} 33... Rb7 {[%clk 0:00:58.3]} 34. R5xa4 {[%clk 0:01:53.3]}
34... Qe7 {[%clk 0:00:57.6]} 35. Qd2 {[%clk 0:01:48.7]} 35... Reb8 {[%clk
0:00:55.2]} 36. Qd4 {[%clk 0:01:47.7]} 36... Rb1+ {[%clk 0:00:50.5]} 37. Kh2
{[%clk 0:01:41.4]} 37... Rxa1 {[%clk 0:00:49.7]} 38. Rxa1 {[%clk 0:01:39]} 38...
Rb7 {[%clk 0:00:49.6]} 39. Rf1 {[%clk 0:01:27.3]} 39... g6 {[%clk 0:00:46.9]}
40. Rc1 {[%clk 0:01:24.4]} 40... Rc7 {[%clk 0:00:46.2]} 41. Ra1 {[%clk 0:01:23]}
41... Qe5+ {[%clk 0:00:41.1]} 42. Qxe5 {[%clk 0:01:20.4]} 42... dxe5 {[%clk
0:00:42]} 43. d6 {[%clk 0:01:19.2]} 43... Rc6 {[%clk 0:00:37.2]} 44. c5 {[%clk
0:01:17.2]} 44... Rxc5 {[%clk 0:00:36]} 45. Rxa7 {[%clk 0:01:17]} 45... Kf8
{[%clk 0:00:34.2]} 46. Ra8+ {[%clk 0:01:13.4]} 1-0